bitfinex/quotes_BTCUSD_20251114
["timestamp","ask_amount","ask_price","bid_price","bid_amount"]
[1763088244175,0.20016832,99916.0,99905.0,0.04398]
[1763088244448,0.09523237,99920.0,99910.0,0.20017966]
[1763088244635,0.20017246,99914.0,99910.0,0.20017966]
[1763088244874,0.06028612,99920.0,99910.0,0.004]
[1763088245078,0.20016213,99919.0,99910.0,0.004]
[1763088245361,0.20016814,99916.0,99908.0,0.20018324]
[1763088245561,0.20017419,99913.0,99906.0,0.20018649]
[1763088245762,0.20017761,99912.0,99910.0,0.003]
[1763088246233,0.20018817,99906.0,99905.0,0.01593]
[1763088247227,0.20018817,99906.0,99904.0,0.01593]
[1763088247576,0.20018586,99908.0,99904.0,0.01593]
[1763088247931,0.20018586,99908.0,99905.0,0.004]
[1763088248131,0.20018119,99910.0,99905.0,0.20419012]
[1763088248274,0.20018119,99910.0,99905.0,0.004]
[1763088248507,0.20017968,99911.0,99905.0,0.20418916]
[1763088249116,0.20018271,99909.0,99905.0,0.004]
[1763088249313,0.20018271,99909.0,99904.0,0.01593]
[1763088249515,0.20018572,99908.0,99905.0,0.003]
[1763088249717,0.2001877,99907.0,99905.0,0.003]
[1763088250346,0.2001877,99907.0,99905.0,0.007]
[1763088250554,0.2001877,99907.0,99905.0,0.003]
[1763088250870,0.2001877,99907.0,99905.0,0.007]
[1763088251254,0.2001877,99907.0,99905.0,0.004]
[1763088251662,0.06028612,99920.0,99905.0,0.004]
[1763088252278,0.06028612,99920.0,99905.0,0.008]
[1763088252482,0.20017917,99911.0,99905.0,0.008]
[1763088252816,0.20017917,99911.0,99904.0,0.2161205]
[1763088252940,0.26044825,99920.0,99905.0,0.004]
[1763088253137,0.20018391,99909.0,99905.0,0.004]
[1763088253365,0.20018391,99909.0,99904.0,0.04586]
[1763088253577,0.20018028,99910.0,99905.0,0.03393]
[1763088254039,0.20018028,99910.0,99905.0,0.02993]
[1763088254245,0.20018028,99910.0,99905.0,0.03393]
[1763088254449,0.20018472,99908.0,99904.0,0.01593]
[1763088254651,0.20018817,99906.0,99905.0,0.003]
[1763088254854,0.21313817,99906.0,99905.0,0.003]
[1763088255060,0.01295,99907.0,99898.0,0.20020321]
[1763088255255,0.09523237,99903.0,99898.0,0.20020321]
[1763088255486,0.20019619,99902.0,99897.0,0.01513]
[1763088255685,0.2002017,99900.0,99897.0,0.01513]
[1763088255901,0.20019619,99902.0,99897.0,0.01513]
[1763088256177,0.20020404,99899.0,99897.0,0.01513]
[1763088256376,0.20020404,99899.0,99898.0,0.003]
[1763088257448,0.20020404,99899.0,99898.0,0.004]
[1763088258427,0.20020168,99900.0,99898.0,0.004]
[1763088258561,0.09523237,99903.0,99898.0,0.007]
[1763088258762,0.20018239,99909.0,99900.0,0.22019929]
[1763088259078,0.09523237,99905.0,99900.0,0.22019929]
[1763088259246,0.09523237,99905.0,99900.0,0.20019929]
[1763088259450,0.2954243,99905.0,99900.0,0.20019929]
[1763088259647,0.20019462,99903.0,99899.0,0.02993]
[1763088259911,0.2954243,99905.0,99900.0,0.02]
[1763088260115,0.2954243,99905.0,99900.0,0.024]
[1763088260316,0.20019413,99904.0,99900.0,0.004]
[1763088260644,0.20019413,99904.0,99900.0,0.02993]
[1763088261375,0.09523237,99905.0,99900.0,0.23312864]
[1763088262211,0.29542436,99905.0,99900.0,0.04993]
[1763088262525,0.29542436,99905.0,99900.0,0.03393]
[1763088262735,0.28979595,99905.0,99900.0,0.03693]
[1763088262878,0.28979579,99905.0,99900.0,0.23712994]
[1763088263086,0.28979579,99905.0,99900.0,0.05693]
[1763088263303,0.28979579,99905.0,99900.0,0.03693]
[1763088263559,0.28979607,99905.0,99900.0,0.05693]
[1763088263967,0.20019369,99904.0,99900.0,0.05693]
[1763088264168,0.08960396,99905.0,99902.0,0.20019618]
[1763088264369,0.08960396,99905.0,99901.0,0.23012669]
[1763088264577,0.20019619,99902.0,99900.0,0.007]
[1763088264784,0.20019619,99902.0,99900.0,0.004]
[1763088265125,0.20019619,99902.0,99900.0,0.007]
[1763088265249,0.20019619,99902.0,99900.0,0.003]
[1763088265449,0.2002042,99898.0,99897.0,0.01513]
[1763088265643,0.20021135,99895.0,99890.0,0.0001377]
[1763088265864,0.20021386,99894.0,99890.0,0.0201377]
[1763088266074,0.20021386,99894.0,99892.0,0.02993]
[1763088266271,0.20020048,99900.0,99892.0,0.02993]
[1763088266884,0.20020597,99898.0,99892.0,0.02993]
[1763088267260,0.20019847,99901.0,99892.0,0.02993]
[1763088267261,0.20021019,99896.0,99892.0,0.02993]
[1763088267898,0.20019847,99901.0,99894.0,0.20021187]
[1763088268099,0.01295,99913.0,99901.0,0.0351]
[1763088268100,0.20018216,99909.0,99901.0,0.0351]
[1763088268280,0.20018216,99909.0,99905.0,0.01513]
[1763088268479,0.20018684,99907.0,99905.0,0.01513]
[1763088269593,0.20018684,99907.0,99905.0,0.004]
[1763088270489,0.20018684,99907.0,99906.0,0.01354]
[1763088271541,0.20019619,99902.0,99901.0,0.01513]
[1763088272726,0.20019619,99902.0,99901.0,0.01913]
[1763088273347,0.20019619,99902.0,99901.0,0.02213]
[1763088273546,0.20019619,99902.0,99901.0,0.007]
[1763088277648,0.20019091,99905.0,99901.0,0.007]
[1763088277839,0.20018657,99907.0,99902.0,0.20019619]
[1763088278041,0.09523237,99905.0,99901.0,0.20719621]
[1763088278244,0.09523237,99905.0,99901.0,0.007]
[1763088278444,0.2954245,99905.0,99902.0,0.02928]
[1763088278839,0.20019362,99904.0,99902.0,0.03328]
[1763088279385,0.20018661,99907.0,99902.0,0.02928]
[1763088279527,0.09523237,99905.0,99902.0,0.02928]
[1763088279729,0.20017196,99915.0,99902.0,0.02928]
[1763088279931,0.09523237,99905.0,99902.0,0.02928]
[1763088280283,0.20019418,99903.0,99902.0,0.03228]
[1763088280413,0.20019418,99903.0,99902.0,0.003]
[1763088280608,0.20019418,99903.0,99901.0,0.004]
[1763088281070,0.20019418,99903.0,99902.0,0.003]
[1763088281432,0.20019418,99903.0,99902.0,0.007]
[1763088281861,0.20019418,99903.0,99902.0,0.003]
[1763088282215,0.20019418,99903.0,99901.0,0.004]
[1763088282443,0.20020621,99897.0,99894.0,0.02928]
[1763088282853,0.20018777,99907.0,99894.0,0.02928]
[1763088283107,0.010008,99920.0,99912.0,0.03347]
[1763088283311,0.20017242,99914.0,99912.0,0.01354]
[1763088283687,0.010008,99920.0,99913.0,0.02928]
[1763088283688,0.20016626,99917.0,99913.0,0.02928]
[1763088284156,0.20016213,99919.0,99913.0,0.02928]
[1763088284880,0.2001656,99918.0,99913.0,0.03228]
[1763088285076,0.30540109,99920.0,99913.0,0.03228]
[1763088285300,0.20017178,99915.0,99913.0,0.02928]
[1763088285603,0.20017178,99915.0,99913.0,0.003]
[1763088285978,0.20017415,99913.0,99912.0,0.01654]
[1763088286245,0.20017415,99913.0,99912.0,0.003]
[1763088286482,0.20018016,99910.0,99909.0,0.01354]
[1763088286682,0.20019018,99905.0,99902.0,0.02928]
[1763088287864,0.20019018,99905.0,99896.0,0.20020809]
[1763088287865,0.20019018,99905.0,99896.0,0.02928]
[1763088288066,0.20020259,99899.0,99896.0,0.02928]
[1763088288626,0.20020259,99899.0,99893.0,0.01354]
[1763088288749,0.20020259,99899.0,99893.0,0.04282]
[1763088289154,0.20019992,99901.0,99893.0,0.24303223]
[1763088289358,0.20020181,99900.0,99895.0,0.20020984]
[1763088289597,0.2002042,99898.0,99893.0,0.04282]
[1763088289778,0.20020181,99900.0,99897.0,0.04282]
[1763088289972,0.20020181,99900.0,99897.0,0.04582]
[1763088290177,0.20020392,99899.0,99897.0,0.04582]
[1763088290390,0.20020392,99899.0,99897.0,0.04282]
[1763088290588,0.20020392,99899.0,99897.0,0.04682]
[1763088290763,0.20020392,99899.0,99897.0,0.02154]
[1763088292048,0.20020181,99900.0,99897.0,0.01754]
[1763088292221,0.20020181,99900.0,99897.0,0.02054]
[1763088292910,0.20020181,99900.0,99897.0,0.01754]
[1763088293114,0.20019987,99901.0,99897.0,0.01754]
[1763088293319,0.20019987,99901.0,99897.0,0.01654]
[1763088293522,0.20018582,99908.0,99897.0,0.01654]
[1763088293762,0.10524037,99920.0,99898.0,0.58160899]
[1763088293763,0.09523237,99905.0,99898.0,0.58160899]
[1763088293967,0.09523237,99905.0,99898.0,0.2002042]
[1763088294243,0.20019218,99904.0,99900.0,0.02]
[1763088295328,0.09523237,99905.0,99900.0,0.02]
[1763088295484,0.20019819,99901.0,99897.0,0.01654]
[1763088295682,0.20018394,99909.0,99898.0,0.02928]
[1763088295882,0.20018394,99909.0,99908.0,0.01993]
[1763088296422,0.20018617,99907.0,99906.0,0.01354]
[1763088298123,0.20018617,99907.0,99906.0,0.01754]
[1763088298534,0.20018617,99907.0,99906.0,0.02054]
[1763088300021,0.20018617,99907.0,99906.0,0.007]
[1763088306289,0.20017415,99913.0,99906.0,0.007]
[1763088306502,0.20016814,99916.0,99915.0,0.01449]
[1763088306954,0.20017632,99912.0,99906.0,0.007]
[1763088307167,0.20017632,99912.0,99906.0,0.004]
[1763088307391,0.010008,99920.0,99907.0,0.0266]
[1763088307631,0.010008,99920.0,99915.0,0.0314]
[1763088307846,0.20016762,99917.0,99915.0,0.0344]
[1763088308067,0.20016762,99917.0,99915.0,0.01698]
[1763088308276,0.20016762,99917.0,99915.0,0.003]
[1763088308976,0.20017815,99911.0,99910.0,0.01398]
[1763088309200,0.2002042,99898.0,99893.0,0.01354]
[1763088309418,0.38140479,99910.0,99893.0,0.01354]
[1763088309635,0.20020261,99899.0,99897.0,0.04014]
[1763088310239,0.20020261,99899.0,99897.0,0.01354]
[1763088310390,0.20020261,99899.0,99897.0,0.01754]
[1763088310600,0.20020261,99899.0,99898.0,0.0266]
[1763088311433,0.2001973,99902.0,99898.0,0.0266]
[1763088311633,0.20020106,99900.0,99898.0,0.0266]
[1763088312248,0.20020106,99900.0,99898.0,0.0296]
[1763088312462,0.20020106,99900.0,99898.0,0.0336]
[1763088312678,0.20020106,99900.0,99898.0,0.0296]
[1763088313164,0.20020106,99900.0,99898.0,0.0336]
[1763088313441,0.20020106,99900.0,99898.0,0.0306]
[1763088313877,0.20020106,99900.0,99898.0,0.0336]
[1763088319203,0.20020106,99900.0,99899.0,0.0266]
[1763088320043,0.2002002,99900.0,99899.0,0.0266]
[1763088320423,0.2002002,99900.0,99899.0,0.0296]
[1763088320621,0.2002002,99900.0,99899.0,0.0336]
[1763088320831,0.2002002,99900.0,99899.0,0.05365]
[1763088321046,0.2002002,99900.0,99899.0,0.0336]
[1763088321592,0.2002002,99900.0,99899.0,0.007]
[1763088323741,0.07887773,99901.0,99899.0,0.007]
[1763088324246,0.2002002,99900.0,99899.0,0.007]
[1763088324653,0.2002002,99900.0,99899.0,0.004]
[1763088325084,0.20021222,99894.0,99893.0,0.01354]
[1763088325997,0.20020821,99896.0,99893.0,0.01354]
[1763088326843,0.20021222,99894.0,99893.0,0.003]
[1763088327280,0.20021823,99891.0,99890.0,0.0001377]
[1763088328607,0.07887773,99901.0,99890.0,0.0001377]
[1763088328805,0.40026753,99934.0,99900.0,0.01742]
[1763088328806,0.20019605,99903.0,99900.0,0.01742]
[1763088329042,0.09523237,99902.0,99900.0,0.01742]
[1763088329250,0.01068,99917.0,99901.0,0.0266]
[1763088329466,0.20018027,99910.0,99909.0,0.0314]
[1763088329696,0.20018027,99910.0,99909.0,0.01398]
[1763088329900,0.20018005,99911.0,99909.0,0.01398]
[1763088330805,0.20017782,99912.0,99909.0,0.02098]
[1763088331028,0.20017782,99912.0,99909.0,0.01698]
[1763088331242,0.20018016,99910.0,99909.0,0.01698]
[1763088331456,0.20018016,99910.0,99909.0,0.02098]
[1763088331742,0.20018016,99910.0,99909.0,0.01698]
[1763088331957,0.20017985,99911.0,99909.0,0.01398]
[1763088332386,0.20017782,99912.0,99909.0,0.01698]
[1763088332587,0.20017372,99914.0,99909.0,0.01698]
[1763088332737,0.20017571,99913.0,99909.0,0.01698]
[1763088332955,0.030066,99915.0,99909.0,0.01998]
[1763088333126,0.09523237,99919.0,99911.0,0.20017815]
[1763088333331,0.09523237,99919.0,99910.0,0.02849]
[1763088333332,0.20017627,99912.0,99910.0,0.02849]
[1763088333736,0.20017627,99912.0,99909.0,0.01698]
[1763088333960,0.20017974,99911.0,99909.0,0.01698]
[1763088334153,0.09523237,99919.0,99910.0,0.02]
[1763088334357,0.20016613,99917.0,99911.0,0.20017815]
[1763088334734,0.20017308,99914.0,99910.0,0.03149]
[1763088334903,0.20017308,99914.0,99910.0,0.02849]
[1763088335275,0.20017615,99912.0,99911.0,0.003]
[1763088335718,0.20017615,99912.0,99910.0,0.02849]
[1763088335927,0.20017195,99915.0,99910.0,0.02849]
[1763088336134,0.20016413,99918.0,99910.0,0.23167013]
[1763088336339,0.20017212,99915.0,99910.0,0.03149]
[1763088336541,0.20017212,99915.0,99910.0,0.02849]
[1763088336804,0.20017212,99915.0,99911.0,0.003]
[1763088337018,0.20017212,99915.0,99910.0,0.03149]
[1763088337219,0.20017212,99915.0,99910.0,0.006]
[1763088337666,0.20016587,99918.0,99911.0,0.02849]
[1763088337843,0.20016778,99917.0,99911.0,0.02849]
[1763088338072,0.20017026,99915.0,99912.0,0.01491]
[1763088338347,0.20017415,99913.0,99911.0,0.003]
[1763088339100,0.20016778,99917.0,99900.0,0.60155953]
[1763088339339,0.20018991,99906.0,99900.0,0.40135956]
[1763088339538,0.20018991,99906.0,99900.0,0.60155831]
[1763088339750,0.09523237,99919.0,99904.0,0.0434]
[1763088339948,0.200174,99914.0,99907.0,0.20018471]
[1763088340157,0.200174,99914.0,99911.0,0.006]
[1763088340550,0.20017615,99912.0,99911.0,0.003]
[1763088341354,0.20018227,99909.0,99906.0,0.02849]
[1763088341556,0.010008,99920.0,99906.0,0.02849]
[1763088341770,0.20017304,99914.0,99910.0,0.38135956]
[1763088341963,0.20016936,99916.0,99908.0,0.20018285]
[1763088342163,0.20017214,99914.0,99906.0,0.02849]
[1763088342362,0.20017779,99912.0,99906.0,0.02849]
[1763088342676,0.20017494,99913.0,99911.0,0.003]
[1763088342874,0.20017494,99913.0,99908.0,0.20018298]
[1763088343075,0.2001723,99914.0,99910.0,0.02]
[1763088343722,0.2001723,99914.0,99911.0,0.003]
[1763088343723,0.20017597,99913.0,99911.0,0.003]
[1763088344078,0.20017791,99912.0,99906.0,0.23167733]
[1763088344295,0.20017791,99912.0,99907.0,0.02849]
[1763088344502,0.2001723,99914.0,99908.0,0.20018416]
[1763088344710,0.2001723,99914.0,99911.0,0.003]
[1763088344912,0.20016811,99917.0,99912.0,0.20017615]
[1763088345117,0.20017036,99915.0,99907.0,0.02849]
[1763088345318,0.20017418,99913.0,99910.0,0.003]
[1763088345794,0.20017214,99914.0,99907.0,0.03149]
[1763088346005,0.20017036,99915.0,99907.0,0.02849]
[1763088346208,0.20017036,99915.0,99911.0,0.003]
[1763088346424,0.20017415,99913.0,99907.0,0.03149]
[1763088346635,0.20017036,99915.0,99907.0,0.03149]
[1763088346899,0.20017036,99915.0,99910.0,0.003]
[1763088347100,0.20017036,99915.0,99907.0,0.03149]
[1763088347315,0.20017465,99913.0,99911.0,0.003]
[1763088347737,0.01068,99912.0,99911.0,0.003]
[1763088348139,0.20017465,99913.0,99911.0,0.003]
[1763088348541,0.20017465,99913.0,99903.0,0.20019418]
[1763088348542,0.20018051,99910.0,99903.0,0.20019418]
[1763088348763,0.20018051,99910.0,99903.0,0.22868418]
[1763088348974,0.20018051,99910.0,99907.0,0.003]
[1763088349188,0.20018051,99910.0,99903.0,0.22868418]
[1763088349397,0.20017465,99913.0,99911.0,0.003]
[1763088349609,0.20017036,99915.0,99911.0,0.003]
[1763088349814,0.20016822,99916.0,99911.0,0.003]
[1763088350245,0.20016213,99919.0,99908.0,0.20018239]
[1763088350434,0.01068,99923.0,99904.0,0.02849]
[1763088350701,0.20018788,99907.0,99904.0,0.02849]
[1763088351322,0.20018981,99906.0,99904.0,0.02849]
[1763088352008,0.20018293,99909.0,99904.0,0.02849]
[1763088352435,0.2001901,99906.0,99904.0,0.003]
[1763088352637,0.2001901,99906.0,99904.0,0.006]
[1763088352818,0.2001901,99906.0,99904.0,0.003]
[1763088353243,0.2001901,99906.0,99904.0,0.006]
[1763088353446,0.2001901,99906.0,99904.0,0.003]
[1763088354118,0.2002002,99900.0,99899.0,0.01398]
[1763088354346,0.02136,99901.0,99890.0,0.0001377]
[1763088354618,0.21088018,99901.0,99892.0,0.20021438]
[1763088354820,0.20020515,99898.0,99892.0,0.20021438]
[1763088354950,0.20020992,99896.0,99891.0,0.21512634]
[1763088355158,0.20020809,99897.0,99891.0,0.21512634]
[1763088356145,0.2002002,99900.0,99892.0,0.003]
[1763088356355,0.20021614,99893.0,99891.0,0.01491]
[1763088356576,0.20021614,99893.0,99891.0,0.01791]
[1763088356990,0.20021614,99893.0,99892.0,0.003]
[1763088357302,0.20021614,99893.0,99891.0,0.01791]
[1763088357494,0.20021214,99895.0,99891.0,0.01791]
[1763088357722,0.20021365,99894.0,99891.0,0.0474]
[1763088357924,0.20021571,99893.0,99891.0,0.0474]
[1763088358104,0.20021463,99893.0,99891.0,0.0514]
[1763088358259,0.20021463,99893.0,99891.0,0.0474]
[1763088358488,0.20021463,99893.0,99891.0,0.0434]
[1763088359077,0.20021463,99893.0,99891.0,0.0474]
[1763088359410,0.20021463,99893.0,99891.0,0.0434]
[1763088359610,0.20021463,99893.0,99891.0,0.0504]
[1763088360211,0.20021463,99893.0,99891.0,0.0474]
[1763088360538,0.20021359,99894.0,99891.0,0.0514]
[1763088360758,0.20021614,99893.0,99891.0,0.0514]
[1763088361049,0.20021614,99893.0,99891.0,0.02291]
[1763088361340,0.20021359,99894.0,99891.0,0.01891]
[1763088361547,0.20021359,99894.0,99891.0,0.01491]
[1763088361753,0.20021359,99894.0,99892.0,0.02703]
[1763088361963,0.20020972,99896.0,99892.0,0.02703]
[1763088362600,0.20021252,99894.0,99892.0,0.02703]
[1763088362767,0.20021623,99892.0,99891.0,0.01791]
[1763088363179,0.20021623,99892.0,99891.0,0.01491]
[1763088364196,0.20021623,99892.0,99891.0,0.01891]
[1763088365092,0.20021561,99893.0,99891.0,0.02291]
[1763088366134,0.20021561,99893.0,99891.0,0.01891]
[1763088366335,0.20021561,99893.0,99891.0,0.02291]
[1763088367109,0.20021561,99893.0,99891.0,0.01891]
[1763088367469,0.20021561,99893.0,99891.0,0.02291]
[1763088368563,0.20021252,99894.0,99891.0,0.02291]
[1763088368693,0.20021561,99893.0,99891.0,0.02291]
[1763088368896,0.20021224,99894.0,99891.0,0.02291]
[1763088369117,0.20020699,99897.0,99891.0,0.02291]
[1763088369320,0.01068,99901.0,99891.0,0.02291]
[1763088369568,0.01068,99901.0,99895.0,0.20020878]
[1763088369973,0.21087953,99901.0,99896.0,0.01351]
[1763088370204,0.22309597,99908.0,99896.0,0.04005]
[1763088370428,0.02291,99908.0,99907.0,0.03206]
[1763088370632,0.00661,99914.0,99907.0,0.03206]
[1763088370837,0.20016593,99918.0,99916.0,0.01351]
[1763088371679,0.20017415,99913.0,99912.0,0.01351]
[1763088372013,0.20018387,99909.0,99907.0,0.01351]
[1763088373936,0.20018387,99909.0,99907.0,0.01751]
[1763088374158,0.20018387,99909.0,99907.0,0.02051]
[1763088374479,0.09523237,99920.0,99916.0,0.03206]
[1763088374679,0.20016413,99918.0,99916.0,0.03206]
[1763088375638,0.20018416,99908.0,99907.0,0.01351]
[1763088375843,0.20019819,99901.0,99899.0,0.01351]
[1763088376052,0.20019012,99906.0,99899.0,0.01351]
[1763088376238,0.20018183,99910.0,99900.0,0.04654]
[1763088376437,0.20018183,99910.0,99908.0,0.03206]
[1763088376676,0.20018183,99910.0,99909.0,0.01855]
[1763088377721,0.20019402,99904.0,99901.0,0.02654]
[1763088377844,0.323,99919.0,99901.0,0.02654]
[1763088378051,0.09523237,99905.0,99901.0,0.02654]
[1763088378253,0.20019491,99903.0,99901.0,0.02654]
[1763088379112,0.20019218,99904.0,99899.0,0.01351]
[1763088379305,0.09523237,99905.0,99896.0,0.01351]
[1763088379669,0.09523237,99919.0,99904.0,0.03206]
[1763088379873,0.20017585,99913.0,99906.0,0.01855]
[1763088380072,0.20018483,99908.0,99906.0,0.01855]
[1763088381099,0.20018483,99908.0,99906.0,0.02255]
[1763088382337,0.20018483,99908.0,99906.0,0.02555]
[1763088383552,0.20018483,99908.0,99906.0,0.007]
[1763088384523,0.09523237,99919.0,99907.0,0.02654]
[1763088384524,0.20016835,99916.0,99907.0,0.02654]
[1763088384748,0.20017203,99915.0,99907.0,0.02654]
[1763088385017,0.20017551,99913.0,99907.0,0.02654]
[1763088385222,0.20017862,99911.0,99907.0,0.02654]
[1763088385546,0.20017862,99911.0,99907.0,0.02954]
[1763088385770,0.20017203,99915.0,99907.0,0.02954]
[1763088385980,0.20017998,99911.0,99907.0,0.03254]
[1763088386181,0.20017998,99911.0,99907.0,0.02954]
[1763088386667,0.20018246,99909.0,99907.0,0.03254]
[1763088387082,0.20018246,99909.0,99907.0,0.006]
[1763088387485,0.20018246,99909.0,99907.0,0.003]
[1763088387687,0.20018246,99909.0,99907.0,0.006]
[1763088388093,0.20018246,99909.0,99907.0,0.003]
[1763088388300,0.20018246,99909.0,99907.0,0.006]
[1763088388845,0.20018217,99909.0,99907.0,0.006]
[1763088390015,0.00413,99908.0,99907.0,0.006]
[1763088391039,0.00413,99908.0,99907.0,0.003]
[1763088391247,0.00413,99908.0,99907.0,0.006]
[1763088391856,0.00413,99908.0,99907.0,0.003]
[1763088392116,0.00413,99908.0,99907.0,0.006]
[1763088392607,0.00413,99908.0,99907.0,0.003]
[1763088392783,0.00413,99908.0,99907.0,0.007]
[1763088393218,0.00413,99908.0,99907.0,0.003]
[1763088393426,0.00413,99908.0,99907.0,0.006]
[1763088397647,0.01487,99908.0,99907.0,0.006]
[1763088399351,0.04493887,99908.0,99907.0,0.006]
[1763088400141,0.04493887,99908.0,99907.0,0.003]
[1763088400360,0.20021823,99891.0,99890.0,0.0001377]
[1763088401252,0.20021588,99893.0,99890.0,0.0001377]
[1763088401463,0.20021775,99892.0,99890.0,0.0031377]
[1763088402481,0.20021245,99894.0,99890.0,0.0031377]
[1763088402482,0.20021245,99894.0,99891.0,0.02848]
[1763088402684,0.20020892,99896.0,99891.0,0.02848]
[1763088402887,0.20021392,99894.0,99891.0,0.02848]
[1763088403649,0.20021597,99893.0,99891.0,0.02848]
[1763088404013,0.20021597,99893.0,99891.0,0.03148]
[1763088404220,0.20021597,99893.0,99891.0,0.006]
[1763088404589,0.20021597,99893.0,99891.0,0.003]
[1763088404590,0.01074,99892.0,99891.0,0.003]
[1763088404793,0.20021392,99894.0,99891.0,0.003]
[1763088405006,0.323,99909.0,99892.0,0.02848]
[1763088405212,0.20021252,99894.0,99892.0,0.02848]
[1763088405435,0.20021623,99892.0,99891.0,0.003]
[1763088405850,0.20021623,99892.0,99891.0,0.02605]
[1763088406061,0.20021271,99894.0,99890.0,0.0001377]
[1763088406524,0.20021271,99894.0,99892.0,0.004]
[1763088406808,0.20021271,99894.0,99891.0,0.003]
[1763088407009,0.20021623,99892.0,99890.0,0.0001377]
[1763088407167,0.20682623,99892.0,99891.0,0.004]
[1763088407568,0.20682623,99892.0,99890.0,0.0031377]
[1763088407767,0.20682623,99892.0,99890.0,0.0001377]
[1763088408197,0.20682623,99892.0,99890.0,0.0031377]
[1763088408744,0.01074,99891.0,99890.0,0.0031377]
[1763088409346,0.01074,99891.0,99890.0,0.0061377]
[1763088409544,0.01074,99891.0,99890.0,0.0001377]
[1763088410036,0.52321422,99893.0,99890.0,0.0001377]
[1763088410245,0.21432623,99892.0,99890.0,0.0031377]
[1763088410458,0.21432623,99892.0,99890.0,0.0061377]
[1763088410666,0.21432623,99892.0,99890.0,0.0031377]
[1763088411020,0.21432623,99892.0,99890.0,0.0061377]
[1763088411807,0.21432623,99892.0,99890.0,0.0031377]
[1763088412015,0.323,99891.0,99890.0,0.0061377]
[1763088412426,0.323,99891.0,99890.0,0.0001377]
[1763088412654,0.323,99891.0,99890.0,0.0051377]
[1763088412655,0.4649021,99891.0,99890.0,0.0051377]
[1763088412861,0.4649021,99891.0,99862.0,0.01411]
[1763088412862,0.20026039,99870.0,99862.0,0.01411]
[1763088413068,0.09523237,99866.0,99862.0,0.01411]
[1763088413332,0.09523237,99866.0,99850.0,0.41143674]
[1763088413333,0.20030023,99851.0,99849.0,0.01411]
[1763088413553,0.18392414,99847.0,99844.0,0.0002305]
[1763088413766,0.20031048,99845.0,99844.0,0.0002305]
[1763088414410,0.22879048,99845.0,99844.0,0.0002305]
[1763088415495,0.22879048,99845.0,99844.0,0.0032305]
[1763088416323,0.22879048,99845.0,99844.0,0.0062305]
[1763088417158,0.55179048,99845.0,99844.0,0.0062305]
[1763088417955,0.20033857,99831.0,99830.0,0.00075]
[1763088418378,0.20033857,99831.0,99830.0,0.00110862]
[1763088418585,0.58343857,99831.0,99830.0,0.00110862]
[1763088418804,0.52333857,99831.0,99830.0,0.00110862]
[1763088419217,0.52333857,99831.0,99830.0,0.00156748]
[1763088419422,0.52333857,99831.0,99830.0,0.00456748]
[1763088419831,0.52333857,99831.0,99830.0,0.00156748]
[1763088420034,0.52333857,99831.0,99830.0,0.00256748]
[1763088420458,0.5273514,99831.0,99830.0,0.00256748]
[1763088421092,0.5273514,99831.0,99830.0,0.00356748]
[1763088423172,0.54597189,99831.0,99830.0,0.00356748]
[1763088425425,0.02263332,99831.0,99830.0,0.00356748]
[1763088425588,0.2043514,99831.0,99830.0,0.00356748]
[1763088426319,0.2043514,99831.0,99830.0,0.00256748]
[1763088426658,0.2043514,99831.0,99830.0,0.00456748]
[1763088427060,0.24777014,99831.0,99830.0,0.00456748]
[1763088427279,0.26636433,99831.0,99830.0,0.00356748]
[1763088427475,0.22294559,99831.0,99830.0,0.00556748]
[1763088427765,0.20036316,99819.0,99813.0,0.01403]
[1763088427957,0.2003579,99822.0,99813.0,0.0141677]
[1763088427958,0.09523237,99814.0,99813.0,0.0141677]
[1763088429054,0.09523237,99814.0,99813.0,0.0161677]
[1763088429644,0.09523237,99814.0,99813.0,0.0141677]
[1763088429938,0.09523237,99814.0,99813.0,0.0171677]
[1763088430232,0.09523237,99814.0,99813.0,0.0466977]
[1763088430392,0.09523237,99814.0,99813.0,0.0486977]
[1763088430571,0.09523237,99814.0,99813.0,0.0171677]
[1763088430773,0.09523237,99814.0,99813.0,0.0031377]
[1763088430996,0.09523237,99814.0,99813.0,0.0051377]
[1763088431522,0.29560506,99814.0,99813.0,0.0051377]
[1763088431726,0.29560506,99814.0,99813.0,0.0001377]
[1763088432129,0.29560506,99814.0,99813.0,0.0041377]
[1763088433585,0.09523237,99814.0,99813.0,0.0041377]
[1763088433807,0.29560506,99814.0,99813.0,0.0041377]
[1763088434069,0.29560506,99814.0,99813.0,0.00457328]
[1763088435123,0.31421701,99814.0,99813.0,0.00457328]
[1763088435739,0.11384432,99814.0,99813.0,0.00457328]
[1763088435966,0.11384432,99814.0,99813.0,0.00257328]
[1763088436178,0.11384432,99814.0,99813.0,0.00457328]
[1763088436179,0.31421701,99814.0,99813.0,0.00457328]
[1763088436593,0.31421701,99814.0,99813.0,0.00257328]
[1763088436797,0.31421701,99814.0,99813.0,0.00457328]
[1763088437232,0.31421701,99814.0,99813.0,0.00257328]
[1763088437655,0.31421701,99814.0,99813.0,0.00057328]
[1763088437925,0.31421701,99814.0,99813.0,0.00257328]
[1763088438551,0.31421701,99814.0,99813.0,0.00457328]
[1763088440268,0.31421701,99814.0,99813.0,0.00257328]
[1763088440504,0.31421701,99814.0,99813.0,0.00057328]
[1763088440712,0.31421701,99814.0,99813.0,0.00357328]
[1763088445222,0.63721701,99814.0,99813.0,0.00157328]
[1763088445879,0.63721701,99814.0,99813.0,0.00057328]
[1763088446306,0.63721701,99814.0,99813.0,0.00157328]
[1763088446516,0.63721701,99814.0,99813.0,0.00257328]
[1763088448506,0.75734553,99814.0,99813.0,0.00257328]
[1763088448786,0.76674001,99814.0,99813.0,0.00257328]
[1763088449660,0.71167539,99814.0,99813.0,0.00057328]
[1763088449883,0.71167539,99814.0,99813.0,0.00257328]
[1763088451250,0.71167539,99814.0,99813.0,0.00157328]
[1763088452511,0.71167539,99814.0,99813.0,0.00057328]
[1763088452719,0.71167539,99814.0,99813.0,0.00157328]
[1763088453198,0.71167539,99814.0,99780.0,0.0004]
[1763088453199,0.04341874,99810.0,99740.0,0.00441375]
[1763088453455,0.14488396,99814.0,99740.0,0.00441375]
[1763088453456,0.20051934,99741.0,99740.0,0.0004]
[1763088453672,0.21913129,99741.0,99740.0,0.00045061]
[1763088453885,0.24076923,99741.0,99740.0,0.00045061]
[1763088454106,0.56376923,99741.0,99740.0,0.00045061]